bitfinex-derivatives/quotes_SOLF0:USTF0_20250714
["timestamp","ask_amount","ask_price","bid_price","bid_amount"]
[1752459190396,3.44,163.35,163.33,12.54010121]
[1752459190597,3.44,163.35,163.34,3.45]
[1752459191504,7.44,163.37,163.34,3.45]
[1752459191801,4.0,163.37,163.36,6.41970121]
[1752459192206,6.25177432,163.39,163.37,3.45]
[1752459192396,6.25177432,163.39,163.38,6.41970121]
[1752459192804,6.25177432,163.39,163.38,12.53820121]
[1752459193004,6.25177432,163.39,163.38,6.41970121]
[1752459193306,9.69177432,163.39,163.38,6.41970121]
[1752459194408,9.69177432,163.39,163.38,3.45]
[1752459194707,15.80997432,163.39,163.38,3.45]
[1752459195309,9.69177432,163.39,163.38,3.45]
[1752459196306,3.44,163.38,163.28,2.96970121]
[1752459196511,3.44,163.36,163.29,6.41970121]
[1752459196813,3.44,163.36,163.3,3.45]
[1752459197004,9.5601,163.34,163.3,3.45]
[1752459197310,3.44,163.33,163.31,2.96970121]
[1752459197805,3.44,163.32,163.31,6.41970121]
[1752459198202,6.40970121,163.38,163.31,2.96970121]
[1752459198408,3.44,163.37,163.32,3.45]
[1752459199311,6.1202,163.34,163.32,3.45]
[1752459199507,3.44,163.33,163.32,3.45]
[1752459200811,0.3796613,163.33,163.32,9.73071306]
[1752459201014,6.1198,163.35,163.32,9.73071306]
[1752459201015,6.12,163.34,163.33,3.45]
[1752459201217,6.12,163.34,163.33,9.73071306]
[1752459202212,6.12,163.34,163.33,6.28071306]
[1752459202911,6.1205,163.33,163.31,3.45]
[1752459203112,2.96970121,163.37,163.32,16.05769459]
[1752459203312,2.96970121,163.37,163.33,12.60769459]
[1752459203513,2.96970121,163.37,163.34,12.46915059]
[1752459203718,9.5593,163.36,163.35,12.46915059]
[1752459204016,9.5593,163.36,163.35,15.91915059]
[1752459204223,9.5593,163.36,163.35,12.46915059]
[1752459206917,12.52900121,163.36,163.35,12.46915059]
[1752459208222,12.52900121,163.36,163.35,6.24639579]
[1752459211426,6.1196,163.35,163.34,0.03891291]
[1752459211620,9.5896,163.35,163.34,6.29604874]
[1752459218624,9.5896,163.35,163.34,9.77604874]
[1752459219219,9.5896,163.35,163.34,6.29604874]
[1752459220029,9.5896,163.35,163.34,0.03891291]
[1752459220232,9.5896,163.35,163.34,6.30654915]
[1752459221822,9.5896,163.35,163.34,9.78654915]
[1752459222621,9.5896,163.35,163.34,6.30654915]
[1752459222829,3.47,163.34,163.3,3.48]
[1752459223425,3.47,163.34,163.29,6.1219]
[1752459223627,3.47,163.32,163.26,2.96970121]
[1752459224229,3.47,163.31,163.27,3.48]
[1752459224826,3.47,163.31,163.3,3.48]
[1752459225922,3.47,163.31,163.29,6.1217]
[1752459226127,3.47,163.31,163.29,9.6017]
[1752459226329,3.47,163.31,163.3,3.48]
[1752459228235,3.47,163.31,163.3,9.6015]
[1752459229429,0.03892376,163.32,163.3,6.1215]
[1752459229430,3.50892376,163.32,163.3,6.1215]
[1752459229736,3.50892376,163.32,163.31,3.48]
[1752459232026,0.03892376,163.32,163.31,9.6011]
[1752459233432,3.50892376,163.32,163.31,3.48]
[1752459237442,3.50892376,163.32,163.31,9.6011]
[1752459237642,0.03892376,163.32,163.31,9.6011]
[1752459243738,0.03892376,163.32,163.31,12.57080121]
[1752459249237,0.03892376,163.32,163.31,9.6011]
[1752459252435,3.32892376,163.32,163.31,9.6011]
[1752459252938,3.32892376,163.32,163.31,11.50091337]
[1752459253647,0.03892376,163.32,163.31,11.50091337]
[1752459259551,0.03892376,163.32,163.31,9.6011]
[1752459259750,0.03892376,163.32,163.31,11.50091337]
[1752459260138,0.03892376,163.32,163.31,8.02091337]
[1752459260344,3.29,163.31,163.3,1.89981337]
[1752459260953,3.29,163.31,163.3,3.4]
[1752459261250,3.29,163.31,163.3,11.42111337]
[1752459262149,0.03892376,163.32,163.31,9.5211]
[1752459262348,0.03892376,163.32,163.31,11.42091337]
[1752459262746,3.32892376,163.32,163.31,11.42091337]
[1752459262948,3.32892376,163.32,163.31,9.5211]
[1752459264145,3.32892376,163.32,163.31,3.4]
[1752459264946,3.32892376,163.32,163.28,3.4]
[1752459265148,5.18981337,163.31,163.28,3.4]
[1752459265450,1.89981337,163.3,163.28,6.1222]
[1752459265645,3.29,163.29,163.28,9.5222]
[1752459267850,3.29,163.29,163.28,6.1222]
[1752459268551,3.29,163.29,163.27,3.4]
[1752459269052,3.29,163.29,163.28,6.1223]
[1752459269847,3.29,163.29,163.28,9.5223]
[1752459271358,3.29,163.29,163.28,11.42211337]
[1752459271545,3.45,163.31,163.29,6.1216]
[1752459271850,3.45,163.31,163.3,3.56]
[1752459272344,3.45,163.31,163.29,9.6816]
[1752459272652,1.93873713,163.32,163.31,3.56]
[1752459272653,3.48892376,163.32,163.31,3.56]
[1752459272950,3.48892376,163.32,163.31,5.45981337]
[1752459273153,3.45,163.32,163.31,5.45981337]
[1752459273649,3.45,163.32,163.31,11.58091337]
[1752459273844,3.45,163.32,163.31,9.6811]
[1752459280157,3.45,163.32,163.31,3.56]
[1752459281759,3.45,163.32,163.31,9.6811]
[1752459282057,3.45,163.32,163.31,3.56]
[1752459283160,3.45,163.32,163.31,9.6811]
[1752459285959,3.45,163.35,163.33,3.56]
[1752459286160,3.45,163.35,163.3,2.96868594]
[1752459286358,3.45,163.35,163.34,3.56]
[1752459286757,3.45,163.35,163.33,3.56]
[1752459286959,3.45,163.36,163.33,9.68]
[1752459287161,3.45,163.36,163.34,3.56]
[1752459289663,9.5693,163.36,163.34,3.56]
[1752459289859,3.45,163.35,163.32,6.1206]
[1752459290065,3.45,163.35,163.33,3.56]
[1752459291967,3.45,163.35,163.34,3.56]
[1752459293857,3.48879023,163.36,163.34,3.56]
[1752459294063,3.45,163.35,163.34,3.56]
[1752459296063,3.45,163.35,163.34,11.57941084]
[1752459296360,0.03879023,163.36,163.34,11.57941084]
[1752459296563,3.48879023,163.36,163.35,3.56]
[1752459297965,3.48879023,163.36,163.34,1.89941084]
[1752459298162,3.48879023,163.36,163.34,5.45941084]
[1752459299261,3.48879023,163.36,163.34,3.56]
[1752459300563,3.48879023,163.36,163.27,5.06612345]
[1752459300564,5.33941084,163.35,163.32,1.89941084]
[1752459300759,5.33941084,163.34,163.32,3.38]
[1752459300959,8.01971084,163.34,163.32,3.38]
[1752459301159,3.44,163.33,163.32,3.38]
[1752459301466,3.44,163.32,163.3,3.38]
[1752459301662,9.5606,163.33,163.3,5.27941084]
[1752459301860,3.44,163.32,163.31,3.38]
[1752459302259,3.44,163.32,163.27,5.06612345]
[1752459302457,1.89941084,163.32,163.29,3.38]
[1752459302661,3.44,163.32,163.3,3.38]
[1752459303054,2.96912223,163.35,163.3,3.38]
[1752459303258,3.44,163.31,163.3,3.38]
[1752459305462,3.44,163.32,163.3,3.38]
[1752459306063,0.03911891,163.33,163.3,6.34912223]
[1752459306364,0.03911891,163.33,163.32,6.34912223]
[1752459307167,0.03911891,163.33,163.32,12.46992223]
[1752459307769,3.44,163.38,163.37,9.4989]
[1752459307965,11.40315986,163.39,163.28,8.03524568]
[1752459307966,6.25177432,163.39,163.38,3.38]
[1752459309371,6.25177432,163.39,163.38,9.4985]
[1752459309664,3.44,163.43,163.37,2.96912223]
[1752459309875,3.44,163.43,163.41,3.38]
[1752459310569,9.5567,163.43,163.41,3.38]
[1752459310763,3.44,163.43,163.41,3.38]
[1752459311567,3.44,163.44,163.43,3.38]
[1752459311775,3.44,163.46,163.43,3.38]
[1752459312077,3.44,163.44,163.43,3.38]
[1752459312364,3.44,163.44,163.4,3.38]
[1752459312570,2.96912223,163.47,163.39,9.08722223]
[1752459312571,6.1167,163.43,163.39,9.08722223]
[1752459312766,3.44,163.42,163.41,3.38]
[1752459314476,9.557,163.42,163.41,3.38]
[1752459314865,9.557,163.42,163.4,0.03875656]
[1752459315065,9.557,163.42,163.4,3.41875656]
[1752459315066,3.44,163.41,163.4,3.41875656]
[1752459316274,9.5568,163.43,163.4,3.41875656]
[1752459316468,3.44,163.45,163.4,3.41875656]
[1752459316869,6.1171,163.42,163.4,3.41875656]
[1752459317070,9.5571,163.42,163.4,3.41875656]
[1752459317975,6.1171,163.42,163.4,0.03875656]
[1752459318272,3.44,163.41,163.4,0.03875656]
[1752459318472,9.5574,163.41,163.4,0.03875656]
[1752459318668,9.5574,163.41,163.4,3.41875656]
[1752459319480,9.5574,163.41,163.4,0.03875656]
[1752459320569,9.5574,163.41,163.4,3.41875656]
[1752459321266,9.5574,163.41,163.4,0.03875656]
[1752459323075,9.5574,163.41,163.4,3.41875656]
[1752459323877,3.44,163.41,163.4,3.41875656]
[1752459324975,9.5574,163.41,163.4,0.03875656]
[1752459325276,3.44,163.41,163.37,3.38]
[1752459325578,6.118,163.4,163.36,3.38]
[1752459325774,3.44,163.39,163.36,3.38]
[1752459326581,9.5582,163.39,163.36,9.4993]
[1752459326781,9.5582,163.39,163.36,6.1193]
[1752459326782,6.1182,163.39,163.36,6.1193]
[1752459327079,3.44,163.38,163.37,3.38]
[1752459327978,3.44,163.4,163.33,3.38]
[1752459328184,3.44,163.4,163.33,2.96912223]
[1752459328378,3.44,163.4,163.34,3.38]
[1752459328686,3.44,163.35,163.33,3.38]
[1752459329582,3.44,163.36,163.33,3.38]
[1752459330084,3.44,163.36,163.34,6.1198]
[1752459330385,3.44,163.36,163.35,3.38]
[1752459330581,3.44,163.36,163.34,3.44]
[1752459330781,6.1192,163.37,163.33,6.1202]
[1752459331191,3.29,163.35,163.33,6.1202]
[1752459331488,6.1192,163.37,163.33,6.1202]
[1752459331489,3.29,163.36,163.33,6.1202]
[1752459331789,3.29,163.36,163.34,3.44]
[1752459331991,3.29,163.36,163.34,6.1198]
[1752459332291,5.15138554,163.42,163.35,3.44]
[1752459332292,3.29,163.37,163.35,3.44]
[1752459332489,3.29,163.36,163.35,3.44]
[1752459332785,2.96912223,163.4,163.35,3.44]
[1752459332990,3.29,163.38,163.35,3.44]
[1752459333293,3.29,163.38,163.35,6.1194]
[1752459333591,6.1184,163.39,163.36,3.44]
[1752459333592,3.29,163.37,163.36,3.44]
[1752459335890,3.29,163.37,163.34,6.1199]
[1752459336101,3.29,163.36,163.32,3.44]
[1752459336396,3.29,163.36,163.29,177.42]
[1752459336397,6.25912223,163.36,163.3,3.44]
[1752459336597,6.1201,163.34,163.3,3.44]
[1752459336898,3.29,163.33,163.3,3.44]
[1752459337099,3.29,163.33,163.31,6.1211]
[1752459337301,3.29,163.33,163.32,3.44]
[1752459338202,3.29,163.33,163.32,9.5608]
[1752459338702,3.29,163.34,163.32,6.1208]
[1752459338905,3.29,163.34,163.33,3.44]
[1752459339899,3.29,163.35,163.3,3.44]
[1752459340110,3.29,163.35,163.31,3.44]
[1752459340306,3.29,163.35,163.32,3.44]
[1752459340498,3.29,163.35,163.33,3.44]
[1752459341402,3.29,163.34,163.33,3.44]
[1752459344706,5.15138554,163.4,163.34,3.44]
[1752459344707,6.119,163.37,163.34,3.44]
[1752459344906,3.29,163.36,163.34,3.44]
[1752459346813,3.29,163.36,163.35,3.44]
[1752459347109,3.29,163.37,163.35,3.44]
[1752459347613,3.29,163.38,163.35,3.44]
[1752459347811,177.22,163.41,163.34,2.96912223]
[1752459348012,3.29,163.36,163.35,6.1195]
[1752459348411,3.29,163.36,163.35,9.5595]
[1752459349014,3.29,163.37,163.35,6.1195]
[1752459349215,3.29,163.37,163.36,3.44]
[1752459355720,9.4089,163.37,163.36,3.44]
[1752459356020,3.29,163.37,163.36,3.44]
[1752459356416,3.29,163.37,163.32,2.96912223]
[1752459356622,3.29,163.37,163.33,3.44]
[1752459356816,3.29,163.37,163.34,6.12]
[1752459357020,3.29,163.37,163.35,3.44]
[1752459357523,3.29,163.37,163.34,9.56]
[1752459357723,3.29,163.37,163.35,3.44]
[1752459359024,3.29,163.36,163.35,3.44]
[1752459359822,3.29,163.37,163.35,3.44]
[1752459360525,3.29,163.37,163.35,9.5595]
[1752459360726,3.6288019,163.38,163.36,3.33]
[1752459361226,3.6288019,163.38,163.37,3.33]
[1752459362327,3.6288019,163.38,163.37,9.4489]
[1752459362328,0.0388019,163.38,163.37,9.4489]
[1752459364231,0.0388019,163.38,163.37,3.33]
[1752459364529,3.6288019,163.38,163.37,3.33]
[1752459365131,3.6288019,163.38,163.37,9.4489]
[1752459365432,0.0388019,163.38,163.37,9.4489]
[1752459366231,0.0388019,163.38,163.37,12.41802223]
[1752459367232,0.0388019,163.38,163.37,9.4489]
[1752459372338,3.6288019,163.38,163.37,9.4489]
[1752459372540,3.6288019,163.38,163.37,3.33]
[1752459374341,0.0388019,163.38,163.37,9.4489]
[1752459385948,3.59,163.42,163.4,3.33]
[1752459386144,3.59,163.43,163.4,6.29912223]
[1752459386345,3.59,163.42,163.41,3.33]
[1752459387041,3.59,163.42,163.41,9.4474]
[1752459389644,3.59,163.42,163.41,3.33]
[1752459390350,3.59,163.42,163.41,9.4474]
[1752459391450,3.59,163.42,163.41,3.33]
[1752459392447,3.59,163.42,163.4,3.36902345]
[1752459392644,3.59,163.42,163.4,0.03902345]
[1752459393147,9.4474,163.41,163.4,0.03902345]
[1752459393947,12.41652223,163.41,163.4,0.03902345]
[1752459394249,3.33,163.4,163.35,6.1195]
[1752459394446,3.33,163.4,163.32,3.33]
[1752459394643,2.96912223,163.41,163.33,3.33]
[1752459394644,3.33,163.38,163.33,3.33]
[1752459394950,5.15138554,163.41,163.28,5.06612345]
[1752459394951,3.33,163.36,163.28,5.06612345]
[1752459395255,2.96912223,163.35,163.29,3.33]
[1752459395449,3.33,163.34,163.31,3.33]
[1752459395952,3.33,163.34,163.31,6.1211]
[1752459396148,3.33,163.34,163.32,3.33]
[1752459396349,3.33,163.34,163.3,3.33]
[1752459396550,3.33,163.33,163.29,9.4516]
[1752459396745,3.33,163.33,163.3,3.33]
[1752459397159,3.33,163.33,163.3,9.4515]
[1752459397450,3.33,163.33,163.3,3.33]
[1752459398046,3.33,163.33,163.3,6.1213]
[1752459398251,3.33,163.33,163.28,3.33]
[1752459398858,3.33,163.32,163.29,3.33]
[1752459399058,3.33,163.32,163.3,3.33]
[1752459399259,3.33,163.32,163.28,9.452]
[1752459399655,9.4511,163.32,163.28,3.33]
[1752459399866,2.96912223,163.33,163.26,3.33]
[1752459400074,3.33,163.3,163.26,3.33]
[1752459400263,3.33,163.3,163.29,6.1218]
[1752459400466,3.33,163.3,163.29,9.4518]
[1752459400770,6.1203,163.34,163.29,6.1218]
[1752459400964,3.33,163.33,163.3,3.33]
[1752459401773,3.33,163.32,163.28,3.33]
[1752459402562,3.36898646,163.32,163.28,3.33]
[1752459402759,3.36898646,163.32,163.28,9.452]
[1752459402967,3.36898646,163.32,163.29,3.33]
[1752459404174,3.36898646,163.32,163.3,3.33]
[1752459404863,3.36898646,163.32,163.3,9.4513]
[1752459405471,3.36898646,163.32,163.3,3.33]
[1752459407266,9.48988646,163.32,163.29,3.33]
[1752459407471,3.33,163.31,163.29,3.33]
[1752459410877,3.33,163.31,163.29,9.4519]
[1752459411173,3.33,163.31,163.3,3.33]
[1752459411368,3.33,163.31,163.3,9.4515]
[1752459411570,3.33,163.31,163.3,3.33]
[1752459412170,0.03898646,163.32,163.3,3.33]
[1752459412371,3.36898646,163.32,163.3,3.33]
[1752459412975,3.36898646,163.32,163.3,9.4514]
[1752459413176,3.36898646,163.32,163.31,3.33]
[1752459413475,3.36898646,163.32,163.29,2.96912223]
[1752459413668,3.36898646,163.32,163.3,3.33]
[1752459414070,3.36898646,163.32,163.31,3.33]
[1752459414276,0.03898646,163.32,163.31,3.33]
[1752459414780,0.03898646,163.32,163.31,9.4512]
[1752459414975,0.03898646,163.32,163.31,12.42032223]
[1752459415873,3.33,163.37,163.32,3.33]
[1752459416173,5.15138554,163.39,163.36,2.96912223]
[1752459416366,11.26958554,163.39,163.35,2.96912223]
[1752459416569,3.33,163.38,163.36,3.33]
[1752459416975,3.33,163.37,163.34,9.4497]
[1752459417170,3.33,163.37,163.35,3.33]
[1752459417475,6.1193,163.37,163.33,3.33]
[1752459417676,3.33,163.36,163.33,3.33]
[1752459417977,9.4486,163.38,163.35,3.33]
[1752459418171,3.33,163.36,163.35,3.33]
[1752459419970,3.33,163.36,163.34,3.36892217]
[1752459419971,9.4493,163.36,163.34,3.36892217]
[1752459420172,3.33,163.35,163.34,3.36892217]
[1752459420873,3.33,163.35,163.34,0.03892217]
[1752459421271,9.4497,163.35,163.34,0.03892217]
[1752459421472,9.6397,163.35,163.34,0.03892217]
[1752459422174,3.52,163.35,163.34,0.03892217]
[1752459423274,9.6397,163.35,163.34,0.03892217]
[1752459424874,3.52,163.35,163.34,0.03892217]
[1752459425581,3.52,163.35,163.34,3.37892217]
[1752459428478,9.6397,163.35,163.34,0.03892217]
[1752459428675,12.60882223,163.35,163.34,0.03892217]
[1752459430077,5.15138554,163.39,163.34,3.37892217]
[1752459430278,3.52,163.35,163.34,0.03892217]
[1752459430877,3.52,163.35,163.34,3.37892217]
[1752459431582,6.119,163.37,163.35,3.34]
[1752459431583,3.52,163.36,163.35,3.34]
[1752459432586,3.52,163.36,163.34,0.03892217]
[1752459433285,6.48912223,163.38,163.34,3.37892217]
[1752459433486,3.52,163.37,163.34,3.37892217]
[1752459433879,3.52,163.35,163.34,3.37892217]
[1752459435782,2.96912223,163.37,163.34,3.37892217]
[1752459435987,3.52,163.36,163.34,3.37892217]
[1752459436388,3.52,163.36,163.35,3.34]
[1752459436689,3.52,163.38,163.35,3.34]
[1752459437088,3.52,163.36,163.35,3.34]
[1752459437682,5.15138554,163.39,163.35,3.34]
[1752459437889,3.52,163.38,163.35,3.34]
[1752459438287,11.64050777,163.38,163.34,0.03892217]
[1752459438490,3.52,163.37,163.34,0.03892217]
[1752459439288,6.1196,163.36,163.34,0.03892217]
[1752459439493,3.52,163.35,163.34,0.03892217]
[1752459440287,3.52,163.35,163.34,3.37892217]
[1752459440484,9.6397,163.35,163.34,0.03892217]
[1752459441994,17.76020777,163.35,163.34,0.03892217]
[1752459443495,12.60882223,163.35,163.34,0.03892217]
[1752459445698,17.76009093,163.35,163.34,0.03892217]
[1752459447298,6.48912223,163.35,163.34,3.37892217]
[1752459448498,3.52,163.35,163.34,3.37892217]
[1752459450006,11.2704687,163.37,163.34,3.37892217]
[1752459450204,8.6712687,163.37,163.34,3.37892217]
[1752459450503,3.52,163.37,163.34,3.37892217]
[1752459450705,3.52,163.37,163.35,3.48]
[1752459452494,9.639,163.37,163.35,3.48]
[1752459453509,8.4612687,163.38,163.35,3.48]
[1752459454003,5.1512687,163.38,163.35,3.48]
[1752459454198,5.1512687,163.39,163.35,3.48]
[1752459454406,3.31,163.38,163.35,3.48]
[1752459454702,9.4286,163.38,163.35,3.48]
[1752459455599,11.2695687,163.39,163.36,3.48]
[1752459455798,8.4612687,163.39,163.36,3.48]
[1752459456003,8.4612687,163.39,163.34,0.03892217]
[1752459456203,3.31,163.38,163.37,3.48]
[1752459456899,9.4285,163.38,163.34,0.03892217]
[1752459457109,6.27705245,163.37,163.34,3.51892217]
[1752459457404,6.1197,163.35,163.34,0.03892217]
[1752459457606,9.4297,163.35,163.34,0.03892217]
[1752459457798,9.4297,163.35,163.34,3.51892217]
[1752459458507,3.31,163.35,163.34,3.51892217]
[1752459460609,9.4297,163.35,163.34,3.51892217]
[1752459460900,9.4297,163.35,163.34,0.03892217]
[1752459461501,9.4297,163.35,163.34,3.51892217]
[1752459462709,3.31,163.35,163.34,3.51892217]
[1752459466704,3.31,163.35,163.34,0.03892217]
[1752459466909,3.31,163.35,163.28,3.48]
[1752459466910,3.31,163.34,163.28,3.48]
[1752459467105,3.31,163.34,163.31,3.48]
[1752459467313,3.31,163.35,163.31,6.1209]
[1752459467608,3.31,163.35,163.32,3.48]
[1752459468011,3.31,163.35,163.32,9.6007]
[1752459468214,3.31,163.35,163.33,3.48]
[1752459469100,9.4297,163.35,163.33,3.48]
[1752459469515,3.31,163.34,163.31,6.121]
[1752459469909,6.1197,163.35,163.31,6.121]
[1752459470111,9.4297,163.35,163.32,6.1208]
[1752459470413,9.4297,163.35,163.33,3.48]
[1752459471308,3.31,163.35,163.33,3.48]
[1752459472210,3.34887489,163.36,163.34,3.48]
[1752459472509,0.03887489,163.36,163.34,3.48]
[1752459473214,0.03887489,163.36,163.35,3.48]
[1752459474413,0.03887489,163.36,163.35,6.4462576]
[1752459479616,0.03887489,163.36,163.35,12.5659576]
[1752459485222,3.49,163.42,163.39,3.41]
[1752459485618,3.49,163.41,163.39,3.41]
[1752459485818,9.6075,163.41,163.4,3.41]
[1752459486024,3.49,163.42,163.4,3.41]
[1752459486214,3.49,163.42,163.4,6.3762576]
[1752459486523,3.49,163.42,163.41,3.41]
[1752459486722,9.6072,163.42,163.41,3.41]
[1752459487219,3.49,163.42,163.41,3.41]
[1752459487521,9.6068,163.43,163.41,3.41]
[1752459488119,6.117,163.42,163.41,3.41]
[1752459489323,9.607,163.42,163.41,3.41]
[1752459489514,6.117,163.42,163.41,3.41]
[1752459489916,3.49,163.43,163.41,3.41]
[1752459490119,9.6068,163.43,163.41,3.41]
[1752459491217,6.117,163.42,163.41,3.41]
[1752459491424,9.607,163.42,163.41,3.41]
[1752459492027,9.6078,163.4,163.39,0.03892992]
[1752459492321,5.14762785,163.46,163.39,6.15682992]
[1752459492519,6.1169,163.43,163.4,2.9662576]
[1752459492715,8.11388545,163.47,163.41,3.41]
[1752459492914,6.117,163.42,163.41,3.41]
[1752459493127,8.11388545,163.47,163.41,3.41]
[1752459493623,2.9662576,163.47,163.41,3.41]
[1752459494128,6.1165,163.44,163.41,3.41]
[1752459494426,3.49,163.43,163.41,3.41]
[1752459494626,9.6065,163.44,163.41,3.41]
[1752459494925,6.1167,163.43,163.41,3.41]
[1752459495124,9.6067,163.43,163.41,3.41]
[1752459496433,6.1164,163.44,163.41,3.41]
[1752459496631,9.6064,163.44,163.41,3.41]
[1752459496827,6.1167,163.43,163.41,3.41]
[1752459499533,6.1167,163.43,163.42,6.3762576]
[1752459505542,9.6067,163.43,163.42,6.3762576]
[1752459508341,9.6067,163.43,163.42,3.41]
[1752459508942,9.6067,163.43,163.42,5.30724051]
[1752459511041,6.1167,163.43,163.42,5.30724051]
[1752459511540,9.4067,163.43,163.42,5.30724051]
[1752459513439,6.1167,163.43,163.42,5.30724051]
[1752459513838,9.4067,163.43,163.42,5.30724051]
[1752459514039,3.29,163.43,163.42,5.30724051]
[1752459515144,9.4067,163.43,163.42,5.30724051]
[1752459517145,3.29,163.43,163.4,0.0390027]
[1752459517339,3.29,163.41,163.4,0.0390027]
[1752459517544,3.29,163.41,163.4,5.52624321]
[1752459518444,3.29,163.41,163.4,3.6290027]
[1752459520347,3.29,163.41,163.4,5.52624321]
[1752459521345,3.29,163.42,163.41,3.59]
[1752459521547,3.29,163.42,163.41,5.48724051]
[1752459522145,1.89724051,163.45,163.41,5.48724051]
[1752459522340,3.29,163.44,163.42,3.59]
[1752459522541,5.14762785,163.45,163.42,3.59]
[1752459522745,3.29,163.43,163.42,5.48724051]
[1752459524452,6.1164,163.44,163.42,5.48724051]
[1752459524453,3.29,163.45,163.43,3.59]
[1752459524647,3.29,163.45,163.44,5.48724051]
[1752459527247,9.4059,163.45,163.44,5.48724051]
[1752459528052,3.29,163.45,163.44,5.48724051]
[1752459532155,3.29,163.45,163.44,5.48724051]
[1752459532655,3.29,163.45,163.44,3.59]
[1752459532851,3.29,163.45,163.44,5.48724051]
[1752459534055,9.4059,163.45,163.44,5.48724051]
[1752459536160,3.29,163.45,163.44,5.48724051]
[1752459537158,3.29,163.46,163.45,3.59]
[1752459537360,3.29,163.46,163.45,5.48724051]
[1752459537562,9.4055,163.46,163.45,5.48724051]
[1752459538162,3.29,163.46,163.45,5.48724051]
[1752459541158,9.4055,163.46,163.45,5.48724051]
[1752459541563,9.4055,163.46,163.45,3.59]
[1752459541766,9.7559,163.45,163.44,0.03876336]
[1752459543066,3.64,163.45,163.44,3.55876336]
[1752459543467,9.7559,163.45,163.44,3.55876336]
[1752459544065,9.7559,163.45,163.44,0.03876336]
[1752459545365,9.7559,163.45,163.44,3.55876336]
[1752459545767,3.64,163.45,163.44,5.45600387]
[1752459546363,6.1155,163.46,163.45,3.52]
[1752459546569,9.7555,163.46,163.45,5.41724051]
[1752459546868,3.64,163.46,163.45,5.41724051]
[1752459547066,5.15099129,163.48,163.45,1.89724051]
[1752459547268,3.64,163.47,163.46,3.52]
[1752459548170,9.7552,163.47,163.46,3.52]
[1752459548563,9.7552,163.47,163.46,9.63172406]
[1752459548771,3.64,163.47,163.46,9.63172406]
[1752459549269,9.7552,163.47,163.46,9.63172406]
[1752459549469,3.64,163.47,163.46,9.63172406]
[1752459549775,3.64,163.47,163.46,3.52]
[1752459550472,3.64,163.46,163.45,5.41724051]
[1752459551567,9.7555,163.46,163.45,3.52]
[1752459551767,9.7555,163.46,163.45,5.41724051]
[1752459552175,9.7555,163.46,163.45,11.53724073]
[1752459552365,3.64,163.46,163.45,11.53724073]
[1752459552566,3.64,163.46,163.45,5.41724051]
[1752459552769,3.64,163.46,163.45,11.53732278]
[1752459552966,6.1152,163.47,163.46,3.52]
[1752459553271,6.1152,163.47,163.46,9.64045577]
[1752459553471,6.1152,163.47,163.46,11.53769628]
[1752459553671,6.1152,163.47,163.46,5.41724051]
[1752459554572,13.1629318,163.49,163.46,1.89724051]
[1752459554773,11.26569129,163.49,163.47,3.52]
[1752459554962,13.43569129,163.49,163.47,3.52]
[1752459556071,5.15099129,163.5,163.48,5.41724051]
[1752459556264,5.15099129,163.5,163.49,3.52]